Cogmind - Beta 13 X1 @@@ ROGUE MODE // 2023.08.23 @ 19:20:32 Player: VR-DUX Result: Self-destructed Performance ------------- Evolutions (2) 1000 Regions Visited (7) 1400 Robots Destroyed (74) 370 Value Destroyed (1136) 1136 Prototype IDs (0) 0 Alien Tech Used (0) 0 Bonus (-64) -64 TOTAL SCORE: 3842 Bonus ------- High Alert Combat Kills 43 Follower Combat Kills 217 Friendly Fire -324 Cogmind --------- Core Integrity 550/550 Matter 284/300 Energy 250/250 System Corruption 0% Temperature Cool (0) Movement Treading (160) Location -8/Materials Parts ------- > --- POWER (1) -------- Ion Engine > --- PROPULSION (4) --- Light Treads Light Treads Improved Treads > --- UTILITY (4) ------ Large Storage Unit Structural Scanner Signal Interpreter > --- WEAPON (2) ------- Heavy Assault Rifle Ripper > --- INVENTORY (15) --- Light Ion Engine Light Ion Engine Light Treads Armored Wheel Medium Storage Unit Large Storage Unit Light Armor Plating Light Armor Plating Hacking Suite Beam Cannon Assault Cannon Rocket Launcher Mace Peak State ------------ > --- POWER ------------ Ion Engine > --- PROPULSION ------- Light Treads Light Treads Improved Treads > --- UTILITY ---------- Large Storage Unit Structural Scanner Signal Interpreter > --- WEAPON ----------- Heavy Assault Rifle Ripper > --- INVENTORY -------- Light Ion Engine Light Ion Engine Light Treads Armored Wheel Medium Storage Unit Large Storage Unit Light Armor Plating Light Armor Plating Hacking Suite Beam Cannon Assault Cannon Rocket Launcher Mace [Rating: 16] Favorites ----------- Power Ion Engine Engine Ion Engine Propulsion Light Treads Treads Light Treads Leg Aluminum Leg Utility Large Storage Unit Device Structural Scanner Storage Large Storage Unit Processor Signal Interpreter Weapon Heavy Assault Rifle Energy Cannon Beam Cannon Ballistic Gun Heavy Assault Rifle Ballistic Cannon Light Cannon Launcher Rocket Launcher Slashing Weapon Ripper Build | -11 -10 -10 -9 -9 -9 -8 -8 ------- Run | Jun Mat Min Mat Min Exi Min Mat Slots Evolved 4 | . . . 2 . . . 2 Power . | . . . . . . . . Propulsion 2 | . . . 1 . . . 1 Utility 2 | . . . 1 . . . 1 Weapon . | . . . . . . . . Parts Attached 36 | . 15 5 9 4 1 2 . Power 5 | . 2 . 1 2 . . . Engine 5 | . 2 . 1 2 . . . Core . | . . . . . . . . Reactor . | . . . . . . . . Propulsion 8 | . 2 1 5 . . . . Treads 8 | . 2 1 5 . . . . Leg . | . . . . . . . . Wheel . | . . . . . . . . Hover . | . . . . . . . . Flight . | . . . . . . . . Utility 8 | . 6 1 1 . . . . Device 4 | . 3 . 1 . . . . Storage 2 | . 2 . . . . . . Processor 2 | . 1 1 . . . . . Hackware . | . . . . . . . . Protection . | . . . . . . . . Artifact . | . . . . . . . . Weapon 15 | . 5 3 2 2 1 2 . Energy Gun . | . . . . . . . . Energy Cannon 2 | . 2 . . . . . . Ballistic Gun 6 | . 1 2 1 1 . 1 . Ballistic Cannon 1 | . . . . 1 . . . Launcher 4 | . 2 . 1 . . 1 . Special Weapon . | . . . . . . . . Impact Weapon . | . . . . . . . . Slashing Weapon 2 | . . 1 . . 1 . . Piercing Weapon . | . . . . . . . . Special Melee Weapon . | . . . . . . . . Unidentified Prototypes . | . . . . . . . . Parts Lost 3 | . . . 1 2 . . . Power 1 | . . . . 1 . . . Propulsion 1 | . . . 1 . . . . Utility . | . . . . . . . . Weapon 1 | . . . . 1 . . . Highest Loss Streak 2 | . . . 1 2 . . . To Critical Strikes . | . . . . . . . . Average Slot Usage (%) 96 | . 97 100 98 96 88 100 . Engine 11 | . 13 14 11 7 11 11 . Treads 28 | . 16 28 32 33 33 33 . Leg 2 | . 11 . . . . . . Device 10 | . 12 7 10 11 11 11 . Storage 12 | . 14 14 11 11 11 11 . Processor 7 | . . 6 11 11 11 11 . Energy Cannon 2 | . 9 . . . . . . Ballistic Gun 10 | . 15 13 12 11 . 8 . Launcher 4 | . 2 14 8 2 . 2 . Slashing Weapon 3 | . . . . . 11 11 . Naked Turns . | . . . . . . . . Heaviest Build 33 | 13 31 31 33 32 29 33 . Greatest Support 63 | 20 40 40 63 63 63 63 . Greatest Overweight (x) . | . . . . . . . . Average Overweight (x) . | . . . . . . . . Largest Inventory Capacity 15 | 8 15 15 15 15 15 15 . Average Capacity 13 | 8 11 15 15 15 15 15 . Most Carried 15 | 7 15 15 15 14 13 13 . Average Carried 12 | 6 9 14 14 13 13 12 . Final Capacity 15 | 8 15 15 15 15 15 15 15 Final Carried 15 | 7 14 15 14 13 13 13 13 Class Distribution -------------------- 66% | Scavenger-Mutant 33% | Mutant Dominant Class ---------------- Mutant | -10/Materials Mutant | -10/Mines Scavenger-Mutant | -9/Materials Scavenger-Mutant | -9/Mines Scavenger-Mutant | -9/Exiles Scavenger-Mutant | -8/Mines Scavenger-Mutant | -8/Materials Resources | -11 -10 -10 -9 -9 -9 -8 -8 ----------- Run | Jun Mat Min Mat Min Exi Min Mat Matter Collected 1565 | 220 452 61 577 137 . 118 . Remotely . | . . . . . . . . Salvage Created 2155 | 105 958 59 874 87 . 72 . Parts 149 | 5 62 2 63 3 . 14 . Haulers Intercepted 4 | . 1 . 3 . . . . Recyclers Shooed 9 | . 5 . 3 . . 1 . Parts Field Recycled . | . . . . . . . . Retrieved Matter . | . . . . . . . . Parts Self-Destructed . | . . . . . . . . Prevented . | . . . . . . . . Kills | -11 -10 -10 -9 -9 -9 -8 -8 ------- Run | Jun Mat Min Mat Min Exi Min Mat Combat Hostiles Destroyed 37 | . 13 . 16 2 . 6 . Melee 1 | . . . . . . 1 . Guns 16 | . 6 . 7 1 . 2 . Cannons 5 | . 5 . . . . . . AOE 15 | . 2 . 9 1 . 3 . Classes Destroyed 10 | 2 7 . 1 . . . . Worker 4 | . 2 . 1 . . 1 . Builder 4 | . 3 . 1 . . . . Tunneler 3 | 1 . . 1 . . 1 . Hauler 4 | . 1 . 3 . . . . Recycler 10 | 1 4 . 4 1 . . . Operator 5 | . 3 . 2 . . . . Watcher 5 | . 2 . 3 . . . . Swarmer 20 | . 5 . 9 . . 6 . Grunt 15 | . 8 . 5 2 . . . Sentry 2 | . . . 2 . . . . Thug 2 | . . 1 1 . . . . Best Kill Streak 8 | 2 8 . 8 2 . 3 . Combat Bots Only 6 | . 3 . 6 2 . 3 . Max Kills in Single Turn 3 | 1 2 1 3 1 . 3 . Gunslinging . | . . . . . . . . Exploded 3 | . 2 . 2 1 . 3 . Melee 1 | . . . . . . 1 . Uniques/NPCs Destroyed . | . . . . . . . . Combat | -11 -10 -10 -9 -9 -9 -8 -8 -------- Run | Jun Mat Min Mat Min Exi Min Mat Damage Taken 1405 | . 466 . 628 241 . 70 . Core 178 | . 85 . 49 44 . . . Absorbed by Shields . | . . . . . . . . Regen/Repaired (Parts) 36 | . . . 36 . . . . Core Remaining (%) 80 | 100 . 66 . . . 76 . Volleys Fired 215 | 5 101 . 81 20 . 8 . Largest 2 | 2 2 . 2 1 . 1 . Hottest 80 | 40 80 . 46 35 . 33 . Shots Fired 306 | 10 163 2 103 20 . 8 . Gun 205 | 10 103 1 80 4 . 7 . Cannon 69 | . 57 . . 12 . . . Launcher 32 | . 3 1 23 4 . 1 . Special . | . . . . . . . . Kinetic 217 | 10 103 1 80 16 . 7 . Thermal 57 | . 57 . . . . . . Explosive 32 | . 3 1 23 4 . 1 . Electromagnetic . | . . . . . . . . Robot Hit Streak 18 | 2 11 2 18 4 . 11 . Robot Miss Streak 5 | 3 3 1 5 1 . . . Penetration Max . | . . . . . . . . Secondary Targets 1 | . . . 1 . . . . Max Gunslinging Chain 1 | . . . 1 . . . . Shots Hit Robots 170 | 4 87 1 58 11 . 9 . Core Hits 98 | 3 38 1 43 8 . 5 . Critical Kills . | . . . . . . . . Critical Parts Destroyed 2 | . 1 . 1 . . . . Critical Strikes 2 | . 1 . 1 . . . . Destroy 2 | . 1 . 1 . . . . Melee Attacks 1 | . . . . . . 1 . Impact . | . . . . . . . . Slashing 1 | . . . . . . 1 . Piercing . | . . . . . . . . Sneak Attacks . | . . . . . . . . Combat Hostiles . | . . . . . . . . Follow-up Attacks . | . . . . . . . . Damage Inflicted 4155 | 51 1404 30 1818 531 . 321 . Guns 1836 | 51 738 . 884 48 . 115 . Cannons 640 | . 537 . . 103 . . . Explosions 1616 | . 129 30 934 380 . 143 . Melee 50 | . . . . . . 50 . Ramming 13 | . . . . . . 13 . Kinetic 1939 | 51 738 . 884 151 . 115 . Thermal 537 | . 537 . . . . . . Explosive 1616 | . 129 30 934 380 . 143 . Electromagnetic . | . . . . . . . . Impact . | . . . . . . . . Slashing 50 | . . . . . . 50 . Piercing . | . . . . . . . . Highest Corruption 5 | . 5 5 3 3 3 3 . Average Corruption 3 | . 4 5 2 3 3 3 . Corruption Purged . | . . . . . . . . Corruption Blocked . | . . . . . . . . Effects 43 | . 7 11 2 4 14 5 . Message Errors 13 | . 2 3 . 3 4 1 . Matter Fused 6 | . . 2 . . 4 . . Heat Flow Errors 5 | . 1 1 . . 2 1 . Energy Discharges 11 | . . 3 1 1 3 3 . Data Loss (minor) 5 | . 4 . . . 1 . . Data Loss (major) 1 | . . . 1 . . . . Misfires 2 | . . 2 . . . . . Overload Shots . | . . . . . . . . Overflow Damage 75 | . 5 . 43 17 . 10 . Projectiles 5 | . 5 . . . . . . Explosions 70 | . . . 43 17 . 10 . Melee . | . . . . . . . . Knockbacks 2 | . . . . 2 . . . Impact . | . . . . . . . . Kinetic 2 | . . . . 2 . . . Secondary . | . . . . . . . . Self-Inflicted Damage 183 | . . . 86 97 . . . Shots 8 | . . . 5 3 . . . Rammed 1 | . . . 1 . . . . Targets Rammed 3 | . . . 1 . . 2 . Kicked . | . . . . . . . . Crushed 2 | . . . . . . 2 . Highest Temperature 201 | . 201 147 7 9 200 184 . Average Temperature 69 | . 66 81 7 5 86 99 . Received Heat Transfer 492 | . 231 . 177 84 . . . Siege Activations . | . . . . . . . . Robots Corrupted . | . . . . . . . . Combat Hostiles . | . . . . . . . . Parts Fried . | . . . . . . . . Impact Corruptions . | . . . . . . . . Robots Melted . | . . . . . . . . Combat Hostiles . | . . . . . . . . Parts Melted 3 | . 3 . . . . . . Heat Transferred 1110 | . 1110 . . . . . . Parts Sabotaged . | . . . . . . . . Parts Stolen . | . . . . . . . . Parts Stripped . | . . . . . . . . Power Chain Reactions . | . . . . . . . . Missiles Intercepted . | . . . . . . . . Alert | -11 -10 -10 -9 -9 -9 -8 -8 ------- Run | Jun Mat Min Mat Min Exi Min Mat Peak Influence 739 | 10 235 62 739 472 . 160 . Initial 288 | . 6 54 . 288 . . 62 Average 203 | 6 124 55 324 408 . 137 . Maximum Alert Level 3 | . 1 . 3 2 . . . Low Security (%) 63 | 100 77 100 39 . . 100 . Level 1 16 | . 22 . 11 45 . . . Level 2 19 | . . . 45 54 . . . Level 3 1 | . . . 3 . . . . Level 4 . | . . . . . . . . Level 5 . | . . . . . . . . High Security . | . . . . . . . . Max Security . | . . . . . . . . Squads Dispatched 7 | . 4 . 3 . . . . Investigation 2 | . 2 . . . . . . Extermination . | . . . . . . . . Reinforcement 5 | . 2 . 3 . . . . Assault . | . . . . . . . . Garrison . | . . . . . . . . Intercept . | . . . . . . . . Searches Triggered . | . . . . . . . . Construction Impeded . | . . . . . . . . Haulers Reinforced . | . . . . . . . . Active Scanning Responses . | . . . . . . . . Cargo Convoy Interrupts . | . . . . . . . . Stealth | -11 -10 -10 -9 -9 -9 -8 -8 --------- Run | Jun Mat Min Mat Min Exi Min Mat Distress Signals 1 | . . . 1 . . . . Communications Jammed . | . . . . . . . . Distress Signals . | . . . . . . . . Times Spotted 65 | . 25 . 29 5 . 6 . Peak Tracking Total 5 | . 5 . 4 3 . 3 . Tactical Retreats 3 | . 2 . 1 . . . . Traps | -11 -10 -10 -9 -9 -9 -8 -8 ------- Run | Jun Mat Min Mat Min Exi Min Mat Traps Triggered 5 | . 3 . 2 . . . . Indirectly . | . . . . . . . . Trap Hack Attempts . | . . . . . . . . Triggered . | . . . . . . . . Disarmed . | . . . . . . . . Reprogrammed . | . . . . . . . . Reused . | . . . . . . . . Traps Extracted . | . . . . . . . . Installed . | . . . . . . . . Triggered . | . . . . . . . . Machines | -11 -10 -10 -9 -9 -9 -8 -8 ---------- Run | Jun Mat Min Mat Min Exi Min Mat Machines Disabled 5 | . . . 3 2 . . . Max in Single Turn 1 | . . . 1 1 . . . Machines Repaired . | . . . . . . . . Machines Sabotaged . | . . . . . . . . Overloaded Fab Kills . | . . . . . . . . Hacking | -11 -10 -10 -9 -9 -9 -8 -8 --------- Run | Jun Mat Min Mat Min Exi Min Mat Machines Accessed 9 | . 4 . 4 . 1 . . Terminals 4 | . 2 . 2 . . . . Fabricators . | . . . . . . . . Repair Stations 1 | . . . 1 . . . . Recycling Units 3 | . 2 . 1 . . . . Scanalyzers . | . . . . . . . . Garrison Access . | . . . . . . . . Total Hacks 21 | . 12 . 8 . 1 . . Successful 11 | . 5 . 5 . 1 . . Failed 10 | . 7 . 3 . . . . Catastrophic 3 | . 3 . . . . . . Database Lockouts . | . . . . . . . . Manual 14 | . 8 . 6 . . . . Terminals 10 | . 7 . 3 . . . . Fabricators . | . . . . . . . . Repair Stations 3 | . . . 3 . . . . Recycling Units 7 | . 5 . 2 . . . . Scanalyzers . | . . . . . . . . Garrison Access . | . . . . . . . . Terminal Hacks 6 | . 3 . 2 . 1 . . Record 2 | . . . 1 . 1 . . Robot Analysis 4 | . 3 . 1 . . . . Fabricator Hacks . | . . . . . . . . Repair Station Hacks 2 | . . . 2 . . . . Scan Component 1 | . . . 1 . . . . Repair 1 | . . . 1 . . . . Recycling Unit Hacks 3 | . 2 . 1 . . . . Retrieve Components 3 | . 2 . 1 . . . . Scanalyzer . | . . . . . . . . Garrison Access Hacks . | . . . . . . . . Unauthorized Hacks . | . . . . . . . . Terminals . | . . . . . . . . Fabricators . | . . . . . . . . Repair Stations . | . . . . . . . . Recycling Units . | . . . . . . . . Scanalyzers . | . . . . . . . . Garrison Access . | . . . . . . . . Data Cores Recovered . | . . . . . . . . Used . | . . . . . . . . Hacking Detections 7 | . 4 . 3 . . . . Full Trace Events 3 | . 3 . . . . . . Feedback Events 1 | . 1 . . . . . . Corruption 1 | . 1 . . . . . . Feedback Blocked . | . . . . . . . . Robot Schematics Acquired . | . . . . . . . . Robots Built . | . . . . . . . . Authchips . | . . . . . . . . Time . | . . . . . . . . Total Robot Build Rating . | . . . . . . . . Part Schematics Acquired . | . . . . . . . . Parts Built . | . . . . . . . . Authchips . | . . . . . . . . Time . | . . . . . . . . Total Part Build Rating . | . . . . . . . . Parts Repaired 1 | . . . 1 . . . . Time 32 | . . . 32 . . . . Parts Recycled . | . . . . . . . . Recycled Matter . | . . . . . . . . Retrieved Matter . | . . . . . . . . Retrieved Components 10 | . 9 . 1 . . . . Parts Scanalyzed . | . . . . . . . . Part Schematics Acquired . | . . . . . . . . Parts Damaged . | . . . . . . . . Bothacking | -11 -10 -10 -9 -9 -9 -8 -8 ------------ Run | Jun Mat Min Mat Min Exi Min Mat Used RIF Installer . | . . . . . . . . Robots Hacked . | . . . . . . . . Non-combat . | . . . . . . . . Combat . | . . . . . . . . Robot Hacks Applied . | . . . . . . . . Relay Couplers Released . | . . . . . . . . Fabnet Peak Effective % . | . . . . . . . . Robots Rewired . | . . . . . . . . Allies Hacked . | . . . . . . . . Hacks Repelled . | . . . . . . . . Allies | -11 -10 -10 -9 -9 -9 -8 -8 -------- Run | Jun Mat Min Mat Min Exi Min Mat Total Allies 3 | . . 2 . 1 . . . Largest Group 2 | . . 2 2 1 . . . Highest-Rated Group 42 | . . 42 42 31 . . . Highest-Rated Ally 31 | . . 31 31 31 . . . Total Orders . | . . . . . . . . Ally Attacks 32 | . . 1 19 12 . . . Total Damage 509 | . . . 297 212 . . . Kills 9 | . . . 6 3 . . . Allies Corrupted . | . . . . . . . . Allies Melted . | . . . . . . . . Intel | -11 -10 -10 -9 -9 -9 -8 -8 ------- Run | Jun Mat Min Mat Min Exi Min Mat Robot Analysis Total 4 | . 3 . 1 . . . . Derelict Logs Recovered 1 | . . . . 1 . . . Drone Launches . | . . . . . . . . Drone Recoveries . | . . . . . . . . Exploration | -11 -10 -10 -9 -9 -9 -8 -8 ------------- Run | Jun Mat Min Mat Min Exi Min Mat Turns Passed 3862 | 45 993 438 784 394 861 347 . Spaces Moved 2063 | 20 484 264 339 218 537 201 . Core . | . . . . . . . . Treads 1837 | . 278 264 339 218 537 201 . Legs 226 | 20 206 . . . . . . Wheels . | . . . . . . . . Hover . | . . . . . . . . Flight . | . . . . . . . . Fastest Speed 120 | 120 120 160 160 160 160 160 . Average Speed 155 | 120 142 160 160 160 160 160 . Slowest Speed 160 | 120 160 160 160 160 160 160 . Overloaded Moves . | . . . . . . . . Propulsion Burnouts . | . . . . . . . . Robots Hopped . | . . . . . . . . Cave-ins Triggered . | . . . . . . . . Exploration Rate (%) 50 | 4 61 54 48 42 90 57 . Regions Visited 7 Branch Regions 4 Pre-discovered Areas . | . . . . . . . . Known Exits Taken 6 | . 1 1 1 1 1 1 . Unknown Exits Taken 1 | 1 . . . . . . . Scrap Searched 4 | . . . . 2 . 2 . Spaces Dug 37 | . . . 37 . . . . Terrain Destroyed 263 | . 29 8 182 33 . 11 . Melee . | . . . . . . . . Projectile . | . . . . . . . . AOE 263 | . 29 8 182 33 . 11 . Terrain Rammed . | . . . . . . . . Walls Destroyed . | . . . . . . . . Machines Disabled . | . . . . . . . . Actions | -11 -10 -10 -9 -9 -9 -8 -8 --------- Run | Jun Mat Min Mat Min Exi Min Mat Total 2415 | 32 624 282 480 242 539 216 . Wait 46 | 7 2 . 37 . . . . Move 2056 | 19 483 263 338 217 536 200 . Hop . | . . . . . . . . Pick Up 27 | 1 12 6 6 . . 2 . Fast Attach 9 | . 4 2 1 2 . . . Attach 10 | . 5 . 3 1 . 1 . Detach 2 | . 1 . . . 1 . . Swap 17 | . 6 3 5 1 1 1 . Drop 29 | . 10 8 8 1 1 1 . Fire 215 | 5 101 . 81 20 . 8 . Melee 1 | . . . . . . 1 . Ram . | . . . . . . . . Kick . | . . . . . . . . Crush 3 | . . . 1 . . 2 . Escape Stasis . | . . . . . . . . Rewire . | . . . . . . . . Trap . | . . . . . . . . Miscellaneous . | . . . . . . . . Route ------- -11/Junkyard -10/Materials (discovered 3 exits: *Mat x2 / *Min) -10/Mines (discovered 2 exits: *Mat x2) -9/Materials (discovered 2 exits: *Mat / *Min) -9/Mines (discovered 3 exits: *Mat / *Exi / *Zio) -9/Exiles -8/Mines -8/Materials History --------- Turn | Location | Event 13 | -11/Junkyard | Discovered new exit (range 3) 46 | -11/Junkyard | Entered Materials 308 | -10/Materials | Build established: Mutant 314 | -10/Materials | Discovered new exit (range 7) 544 | -10/Materials | Discovered new exit (range 16) 781 | -10/Materials | Discovered new exit (range 15) 1033 | -10/Materials | Identified exit to Mines 1039 | -10/Materials | Entered Mines 1057 | -10/Mines | Joined a pair of Derelicts in attacking an 0b10 outpost 1175 | -10/Mines | A weapon hastily lodged in a ceiling crevice suddenly fell to the ground 1218 | -10/Mines | Discovered new exit (range 12) 1282 | -10/Mines | Identified exit to Materials 1316 | -10/Mines | Found a hidden stash of uninstalled traps 1453 | -10/Mines | Discovered exit to Materials (range 16) 1461 | -10/Mines | Assembled infested the area 1477 | -10/Mines | Entered Materials 1477 | -9/Materials | Accompanied by 2 allies 1477 | -9/Materials | Evolved 2 slots: Propulsion x1, Utility x1 1482 | -9/Materials | Led the pair of lost Derelicts to an unsafe place 1634 | -9/Materials | Repaired Rocket Launcher 1777 | -9/Materials | Build established: Scavenger-Mutant 1822 | -9/Materials | Discovered new exit (range 14) 1858 | -9/Materials | Identified exit to Materials 2217 | -9/Materials | Discovered new exit (range 16) 2257 | -9/Materials | Identified exit to Mines 2261 | -9/Materials | Entered Mines 2264 | -9/Mines | Received a Mining Laser from a helpful Derelict 2293 | -9/Mines | Learned location of 1 exit from Proximity Caves 2580 | -9/Mines | A Derelict revealed a hidden shortcut to a safe place 2581 | -9/Mines | Discovered exit to Materials (range 9) 2627 | -9/Mines | Identified exit to Zion 2647 | -9/Mines | Deemed a non-threat by the Exiles lab entrance 2647 | -9/Mines | Discovered new exit (range 5) 2651 | -9/Mines | Identified exit to Exiles 2655 | -9/Mines | Entered Exiles 2655 | -9/Exiles | Found Exiles lab abandoned 3496 | -9/Exiles | Discovered new exit (range 11) 3512 | -9/Exiles | Identified exit to Mines 3516 | -9/Exiles | Entered Mines 3847 | -8/Mines | Discovered exit to Materials (range 10) 3863 | -8/Mines | Entered Materials 3863 | -8/Materials | Evolved 2 slots: Propulsion x1, Utility x1 3863 | -8/Materials | Self-destructed Last Messages --------------- 03664_ Found 24 Matter. 03665_ Acquired 24 matter. 03682_ Searching scrap... 03682_ Found Assault Cannon. 03682_ Found Huge Storage Unit. 03682_ Found Beam Cannon. 03682_ Found 28 Matter. 03683_ Acquired 28 matter. 03686_ Dropped Lgt. Cannon. 03686_ Acquired Assault Cannon. 03693_ %CZK8|V51>EVNXQX